fUST/lending_fUST_20250325
["ID","MTS","AMOUNT","RATE_DAILY","PERIOD"]
[356630471,1742855448768,-3233.67,0.00013698,2]
[356630472,1742855448778,-500.0,0.00013698,2]
[356630473,1742855448787,-1390.02,0.00013698,2]
[356630474,1742855448796,-500.0,0.00013698,2]
[356630475,1742855448805,-427.78504771,0.00013698,2]
[356630476,1742855448815,-500.0,0.00013698,2]
[356630477,1742855448825,-500.0,0.00013698,2]
[356630478,1742855448835,-573.56,0.00013698,2]
[356630479,1742855448843,-500.0,0.00013698,2]
[356630480,1742855448853,-2212.09,0.00013698,2]
[356630481,1742855448862,-500.0,0.00013698,2]
[356630482,1742855448871,-508.97,0.00013698,2]
[356630483,1742855448881,-500.0,0.00013698,2]
[356630484,1742855448890,-500.0,0.00013698,2]
[356630485,1742855448899,-301.36767053,0.00013698,2]
[356630486,1742855448909,-500.0,0.00013698,2]
[356630487,1742855448918,-993.19,0.00013698,2]
[356630488,1742855448927,-500.0,0.00013698,2]
[356630489,1742855448936,-2267.63,0.00013698,2]
[356630490,1742855448945,-500.0,0.00013698,2]
[356630491,1742855448956,-4183.78,0.00013698,2]
[356630492,1742855448966,-580.92,0.00013698,2]
[356630493,1742855448975,-876.35,0.00013698,2]
[356630494,1742855448985,-500.0,0.00013698,2]
[356630495,1742855448994,-1373.56,0.00013698,2]
[356630496,1742855449005,-1432.06,0.00013698,2]
[356630497,1742855449014,-506.24,0.00013698,2]
[356630498,1742855449024,-500.0,0.00013698,2]
[356630499,1742855449035,-500.0,0.00013698,2]
[356630500,1742855449044,-1687.13,0.00013698,2]
[356630501,1742855449053,-500.0,0.00013698,2]
[356630502,1742855449062,-500.0,0.00013698,2]
[356630503,1742855449071,-500.0,0.00013698,2]
[356630504,1742855449080,-500.0,0.00013698,2]
[356630505,1742855449089,-500.0,0.00013698,2]
[356630506,1742855449099,-1072.66,0.00013698,2]
[356630507,1742855449108,-871.81,0.00013698,2]
[356630508,1742855449118,-500.0,0.00013698,2]
[356630509,1742855449127,-500.0,0.00013698,2]
[356630510,1742855449137,-500.0,0.00013698,2]
[356630511,1742855449147,-500.0,0.00013698,2]
[356630512,1742855449156,-637.32,0.00013698,2]
[356630513,1742855449165,-513.05483529,0.00013698,2]
[356630514,1742855449175,-1497.52570719,0.00013698,2]
[356630515,1742855449348,-1340.45429281,0.00013698,2]
[356630516,1742855449358,-10309.54570719,0.00013698,2]
[356630517,1742855449371,-15441.02896661,0.00013698,2]
[356630518,1742855855752,1000.0,0.00024,120]
[356630520,1742856280969,165.590968,0.00010959,2]
[356630537,1742856631970,-448.63,0.00012673,2]
[356630538,1742856631979,-3180.433613,0.00013597,2]
[356630539,1742856631989,-300.0,0.00013597,2]
[356630540,1742856631998,-241.99492353,0.00013597,2]
[356630541,1742856632007,-1036.36662517,0.00013598,2]
[356630582,1742856645969,-448.63,0.00013598,2]
[356630583,1742856645981,-433.26537772,0.00013598,2]
[356630584,1742857325003,165.590968,0.00010959,2]
[356630585,1742857333010,200.0,0.0001399,30]
[356630586,1742857391832,232.33,0.0001399,30]
[356630612,1742857832214,-161.691857,0.00012598,2]
[356630613,1742857832224,-201.4327913,0.00013287,2]
[356630614,1742857832234,-150.95302394,0.00013597,2]
[356630615,1742857832243,-2782.87941134,0.00013597,2]
[356630616,1742857832252,-300.0,0.00013597,2]
[356630617,1742857832262,-249.49348064,0.00013597,2]
[356630618,1742857832271,-401.62018262,0.00013597,2]
[356630619,1742857832281,-150.95302394,0.00013598,2]
[356630620,1742857832291,-500.0,0.00013598,2]
[356630621,1742857832300,-150.95302394,0.00013598,2]
[356630622,1742857832310,-22310.98937212,0.00013598,2]
[356630669,1742857843229,-310.59546231,0.00013479,2]
[356630670,1742857843266,-89.40453769,0.00013479,2]
[356630671,1742857843275,-6431.56272429,0.00013598,2]
[356630684,1742857846337,-13145.1423997,0.00013598,2]
[356630685,1742857846347,-500.0,0.00013697,2]
[356630686,1742857846357,-500.0,0.00013698,2]
[356630687,1742857846367,-500.0,0.00013698,2]
[356630688,1742857846377,-500.0,0.00013698,2]
[356630689,1742857846387,-500.0,0.00013698,2]
[356630690,1742857846397,-500.0,0.00013698,2]
[356630691,1742857846407,-325.0,0.00013698,2]
[356630692,1742857846416,-319.75376452,0.00013698,2]
[356630693,1742857846426,-500.0,0.00013698,2]
[356630694,1742857846436,-500.0,0.00013698,2]
[356630695,1742857846445,-502.69964851,0.00013698,2]
[356630696,1742857846455,-505.69083364,0.00013698,2]
[356630697,1742857846464,-500.0,0.00013698,2]
[356630698,1742857846474,-534.33655855,0.00013698,2]
[356630699,1742857846483,-525.66166999,0.00013698,2]
[356630700,1742857846494,-503.47584988,0.00013698,2]
[356630701,1742857846503,-507.70107527,0.00013698,2]
[356630702,1742857846513,-510.84801946,0.00013698,2]
[356630703,1742857846523,-530.1544011,0.00013698,2]
[356630704,1742857846532,-504.92719979,0.00013698,2]
[356630705,1742857846542,-511.19758096,0.00013698,2]
[356630706,1742857846552,-531.61502382,0.00013698,2]
[356630707,1742857846562,-11.028136,0.00013698,2]
[356630708,1742857846575,-488.971864,0.00013698,2]
[356630709,1742857846584,-500.0,0.00013698,2]
[356630710,1742857846594,-511.91360604,0.00013698,2]
[356630711,1742857846604,-514.28663429,0.00013698,2]
[356630712,1742857846613,-500.0,0.00013698,2]
[356630713,1742857846623,-500.0,0.00013698,2]
[356630714,1742857846632,-500.0,0.00013698,2]
[356630715,1742857846642,-186.34164933,0.00013698,2]
[356630772,1742859038244,-151.0,0.00012239,2]
[356630773,1742859038254,-1580.0,0.00013,2]
[356630774,1742859038264,-27.43688175,0.00013287,2]
[356631196,1742859043988,-123.63771175,0.00013287,2]
[356631199,1742859043998,-2435.01948494,0.00013598,2]
[356631202,1742859044008,-2320.82022777,0.00013598,2]
[356631204,1742859044018,-300.0,0.00013696,2]
[356631208,1742859044028,-174.64543645,0.00013697,2]
[356631213,1742859044038,-500.0,0.00013697,2]
[356631215,1742859044048,-500.0,0.00013697,2]
[356631217,1742859044058,-500.0,0.00013697,2]
[356631219,1742859044067,-432.52109919,0.00013697,2]
[356631221,1742859044077,-500.0,0.00013697,2]
[356631223,1742859044086,-1538.03088883,0.00013698,3]
[356631283,1742859046504,-285.98770573,0.00013698,3]
[356631284,1742859046516,-1973.12262644,0.00013698,3]
[356631286,1742859046610,-16102.337749,0.00013698,3]
[356631289,1742859046619,-7374.51985648,0.00013698,3]
[356631368,1742860232883,-250.0,0.00012579,2]
[356631370,1742860232892,-300.0,0.00012671,2]
[356631372,1742860232902,-500.0,0.00012672,2]
[356631374,1742860232911,-500.0,0.00012672,2]
[356631376,1742860232920,-500.0,0.00012672,2]
[356631377,1742860232931,-500.0,0.00012672,2]
[356631378,1742860232941,-500.0,0.00012672,2]
[356631380,1742860232950,-500.0,0.00012672,2]
[356631382,1742860232959,-626.49590877,0.00012672,2]
[356631383,1742860232969,-23807.2719946,0.00012673,2]
[356631384,1742860232979,-151.0745935,0.00013287,2]
[356631385,1742860232988,-316.77391936,0.00013597,2]
[356631386,1742860232998,-500.0,0.00013597,2]
[356631387,1742860233009,-184.83015921,0.00013597,2]
[356631388,1742860233018,-150.95302394,0.00013598,2]
[356631389,1742860233028,-2130.64204934,0.00013598,2]
[356631390,1742860233038,-19629.79621702,0.00013598,2]
[356631391,1742860233048,-16291.68598665,0.00013698,3]
[356631392,1742860233060,-352.02252764,0.00013698,3]
[356631394,1742860238472,-1015.9999994,0.00013698,3]
[356631419,1742860243630,-151.0745935,0.00013287,2]
[356631420,1742860243640,-6674.39656206,0.00013698,3]
[356631450,1742860936331,-265.4387,0.00018,30]
[356631451,1742860936692,-250.0,0.0002,99]
[356631452,1742860936902,-31.95768232,0.0002,99]
[356631453,1742860937118,-250.0,0.0002,30]
[356631454,1742860937161,-152.60361768,0.00024303,30]
[356631455,1742860987912,173.0,0.00021303,120]
[356631456,1742861104728,-181.54439854,0.000123,2]
[356631457,1742861114809,181.54439854,0.000125,3]
[356631504,1742861438421,-984.85769616,0.000123,2]
[356631506,1742861438431,-151.0745936,0.00013287,2]
[356631508,1742861438440,-355.11789022,0.00013598,2]
[356631513,1742861438478,-862.04420907,0.00013598,2]
[356631518,1742861438527,-683.8404032,0.00013598,2]
[356631520,1742861438539,-400.0,0.00013613,2]
[356631521,1742861438549,-479.38111145,0.00013697,2]
[356631522,1742861438558,-402.94398986,0.00013697,2]
[356631523,1742861438568,-273.077151,0.00013697,2]
[356631524,1742861438578,-954.75060992,0.00013697,2]
[356631525,1742861438589,-300.0,0.00013697,2]
[356631526,1742861438599,-1382.02912494,0.00013698,3]
[356631540,1742861440883,-1745.0654757,0.00013698,3]
[356631541,1742861440895,-1363.14015772,0.00013698,3]
[356631542,1742861440936,-420.87043536,0.00013698,3]
[356631572,1742861443778,-1148.4465268,0.00013698,3]
[356631610,1742861446671,-672.04,0.00013698,3]
[356631612,1742861446684,-13897.53252113,0.00013698,3]
[356631614,1742861446696,-637.33275232,0.00013698,3]
[356632242,1742862632210,-150.543482,0.00012328,2]
[356632243,1742862632221,-172.181332,0.00012328,2]
[356632244,1742862632230,-6736.6184837,0.00012522,2]
[356632245,1742862632240,-151.779995,0.000132,4]
[356632246,1742862632250,-3652.27213223,0.00013299,2]
[356632247,1742862632259,-1727.58593112,0.00013596,2]
[356632248,1742862632269,-485.85784093,0.00013597,2]
[356632249,1742862632278,-5000.0,0.00013598,2]
[356632250,1742862632289,-222000.0,0.00013598,2]
[356632251,1742862632298,-151.779995,0.00013615,2]
[356632252,1742862632308,-151.0,0.00013696,2]
[356632253,1742862632317,-18253.7072466,0.00013698,3]
[356632254,1742862632326,-500.0,0.00013698,2]
[356632255,1742862632336,-500.0,0.00013698,2]
[356632256,1742862632345,-500.0,0.00013698,2]
[356632257,1742862632354,-500.0,0.00013698,2]
[356632258,1742862632364,-500.0,0.00013698,2]
[356632259,1742862632373,-500.0,0.00013698,2]
[356632260,1742862632383,-500.0,0.00013698,2]
[356632261,1742862632393,-500.0,0.00013698,2]
[356632262,1742862632402,-500.0,0.00013698,2]
[356632263,1742862632411,-500.0,0.00013698,2]
[356632264,1742862632421,-500.0,0.00013698,2]
[356632265,1742862632431,-500.0,0.00013698,2]
[356632266,1742862632440,-500.0,0.00013698,2]
[356632267,1742862632449,-500.0,0.00013698,2]
[356632268,1742862632459,-500.0,0.00013698,2]
[356632269,1742862632468,-591.95,0.00013698,2]
[356632270,1742862632477,-500.0,0.00013698,2]
[356632271,1742862632486,-500.0,0.00013698,2]
[356632272,1742862632495,-500.0,0.00013698,2]
[356632273,1742862632505,-500.0,0.00013698,2]
[356632274,1742862632514,-500.0,0.00013698,2]
[356632275,1742862632523,-500.0,0.00013698,2]
[356632276,1742862632532,-500.0,0.00013698,2]
[356632277,1742862632542,-500.0,0.00013698,2]
[356632278,1742862632552,-500.0,0.00013698,2]
[356632279,1742862632562,-500.0,0.00013698,2]
[356632280,1742862632572,-500.0,0.00013698,2]
[356632281,1742862632582,-500.0,0.00013698,2]
[356632282,1742862632591,-500.0,0.00013698,2]
[356632283,1742862632601,-500.0,0.00013698,2]
[356632284,1742862632610,-500.0,0.00013698,2]
[356632285,1742862632620,-567.5,0.00013698,2]
[356632286,1742862632629,-500.0,0.00013698,2]
[356632287,1742862632639,-500.0,0.00013698,2]
[356632288,1742862632649,-500.0,0.00013698,2]
[356632289,1742862632658,-483.36148073,0.00013698,2]
[356632290,1742862632667,-500.0,0.00013698,2]
[356632291,1742862632677,-500.0,0.00013698,2]
[356632292,1742862632686,-500.0,0.00013698,2]
[356632293,1742862632696,-500.0,0.00013698,2]
[356632294,1742862632705,-500.0,0.00013698,2]
[356632295,1742862632714,-500.0,0.00013698,2]
[356632296,1742862632723,-500.0,0.00013698,2]
[356632297,1742862632733,-500.0,0.00013698,2]
[356632298,1742862632742,-500.0,0.00013698,2]
[356632299,1742862632751,-500.0,0.00013698,2]
[356632300,1742862632760,-500.0,0.00013698,2]
[356632301,1742862632770,-500.0,0.00013698,2]
[356632302,1742862632779,-500.0,0.00013698,2]
[356632303,1742862632788,-500.0,0.00013698,2]
[356632304,1742862632797,-1137.42,0.00013698,2]
[356632305,1742862632807,-500.0,0.00013698,2]
[356632306,1742862632816,-500.0,0.00013698,2]
[356632307,1742862632825,-500.0,0.00013698,2]
[356632308,1742862632835,-500.0,0.00013698,2]
[356632309,1742862632844,-500.0,0.00013698,2]
[356632310,1742862632853,-500.0,0.00013698,2]
[356632311,1742862632862,-500.0,0.00013698,2]
[356632312,1742862632871,-500.0,0.00013698,2]
[356632313,1742862632881,-500.0,0.00013698,2]
[356632314,1742862632890,-517.27,0.00013698,2]
[356632315,1742862632899,-500.0,0.00013698,2]
[356632316,1742862632909,-500.0,0.00013698,2]
[356632317,1742862632918,-500.0,0.00013698,2]
[356632318,1742862632927,-500.0,0.00013698,2]
[356632319,1742862632937,-552.53436452,0.00013698,2]
[356632320,1742862632946,-500.0,0.00013698,2]
[356632321,1742862632956,-500.0,0.00013698,2]
[356632322,1742862632966,-500.0,0.00013698,2]
[356632323,1742862632975,-1187.63,0.00013698,2]
[356632324,1742862632985,-500.0,0.00013698,2]
[356632325,1742862632994,-517.62,0.00013698,2]
[356632326,1742862633004,-500.0,0.00013698,2]
[356632327,1742862633013,-1065.02,0.00013698,2]
[356632328,1742862633023,-500.0,0.00013698,2]
[356632329,1742862633032,-500.0,0.00013698,2]
[356632330,1742862633043,-500.0,0.00013698,2]
[356632331,1742862633053,-513.25,0.00013698,2]
[356632332,1742862633063,-500.0,0.00013698,2]
[356632333,1742862633073,-500.0,0.00013698,2]
[356632334,1742862633082,-513.77,0.00013698,2]
[356632335,1742862633091,-519.51,0.00013698,2]
[356632336,1742862633101,-500.0,0.00013698,2]
[356632337,1742862633111,-500.0,0.00013698,2]
[356632338,1742862633121,-500.0,0.00013698,2]
[356632339,1742862633131,-500.0,0.00013698,2]
[356632340,1742862633141,-500.0,0.00013698,2]
[356632341,1742862633151,-500.0,0.00013698,2]
[356632342,1742862633161,-500.0,0.00013698,2]
[356632343,1742862633171,-500.0,0.00013698,2]
[356632344,1742862633180,-500.0,0.00013698,2]
[356632345,1742862633190,-500.0,0.00013698,2]
[356632346,1742862633200,-500.0,0.00013698,2]
[356632347,1742862633209,-500.0,0.00013698,2]
[356632348,1742862633221,-500.0,0.00013698,2]
[356632349,1742862633230,-294.14934598,0.00013698,2]
[356632350,1742862633239,-500.0,0.00013698,2]
[356632351,1742862633248,-500.0,0.00013698,2]
[356632352,1742862633259,-500.0,0.00013698,2]
[356632353,1742862633268,-500.0,0.00013698,2]
[356632354,1742862633278,-500.0,0.00013698,2]
[356632355,1742862633289,-500.0,0.00013698,2]
[356632356,1742862633299,-500.0,0.00013698,2]
[356632357,1742862633309,-500.0,0.00013698,2]
[356632358,1742862633319,-500.0,0.00013698,2]
[356632359,1742862633329,-500.0,0.00013698,2]
[356632360,1742862633339,-500.0,0.00013698,2]
[356632361,1742862633349,-500.0,0.00013698,2]
[356632362,1742862633358,-666.66,0.00013698,2]
[356632363,1742862633367,-500.0,0.00013698,2]
[356632364,1742862633376,-500.0,0.00013698,2]
[356632365,1742862633387,-500.0,0.00013698,2]
[356632366,1742862633397,-869.58,0.00013698,2]
[356632367,1742862633407,-500.0,0.00013698,2]
[356632368,1742862633416,-509.94948766,0.00013698,2]
[356632369,1742862633426,-500.0,0.00013698,2]
[356632370,1742862633435,-500.0,0.00013698,2]
[356632371,1742862633444,-500.0,0.00013698,2]
[356632372,1742862633453,-506.35576884,0.00013698,2]
[356632373,1742862633462,-500.0,0.00013698,2]
[356632374,1742862633471,-500.0,0.00013698,2]
[356632375,1742862633481,-3264.07,0.00013698,2]
[356632376,1742862633490,-500.0,0.00013698,2]
[356632377,1742862633499,-500.0,0.00013698,2]
[356632378,1742862633509,-500.0,0.00013698,2]
[356632379,1742862633518,-500.0,0.00013698,2]
[356632380,1742862633527,-500.0,0.00013698,2]
[356632381,1742862633536,-500.0,0.00013698,2]
[356632382,1742862633545,-500.0,0.00013698,2]
[356632383,1742862633555,-500.0,0.00013698,2]
[356632384,1742862633564,-919.95,0.00013698,2]
[356632385,1742862633574,-500.0,0.00013698,2]
[356632386,1742862633583,-500.0,0.00013698,2]
[356632387,1742862633592,-1207.67,0.00013698,2]
[356632388,1742862633601,-500.0,0.00013698,2]
[356632389,1742862633610,-500.0,0.00013698,2]
[356632390,1742862633620,-500.0,0.00013698,2]
[356632391,1742862633630,-500.0,0.00013698,2]
[356632392,1742862633640,-500.0,0.00013698,2]
[356632393,1742862633649,-989.52,0.00013698,2]
[356632394,1742862633659,-500.0,0.00013698,2]
[356632395,1742862633669,-500.0,0.00013698,2]
[356632396,1742862633681,-500.0,0.00013698,2]
[356632397,1742862633691,-500.0,0.00013698,2]
[356632398,1742862633700,-500.0,0.00013698,2]
[356632399,1742862633709,-500.0,0.00013698,2]
[356632400,1742862633719,-500.0,0.00013698,2]
[356632401,1742862633728,-500.0,0.00013698,2]
[356632402,1742862633738,-500.0,0.00013698,2]
[356632403,1742862633747,-500.0,0.00013698,2]
[356632404,1742862633757,-500.0,0.00013698,2]
[356632405,1742862633766,-500.0,0.00013698,2]
[356632406,1742862633775,-500.0,0.00013698,2]
[356632407,1742862633784,-500.0,0.00013698,2]
[356632408,1742862633794,-500.0,0.00013698,2]
[356632409,1742862633803,-500.0,0.00013698,2]
[356632410,1742862633812,-500.0,0.00013698,2]
[356632411,1742862633822,-500.0,0.00013698,2]
[356632412,1742862633831,-500.0,0.00013698,2]
[356632413,1742862633840,-500.0,0.00013698,2]
[356632414,1742862633850,-500.0,0.00013698,2]
[356632415,1742862633859,-500.0,0.00013698,2]
[356632416,1742862633869,-520.94,0.00013698,2]
[356632417,1742862633878,-500.0,0.00013698,2]
[356632418,1742862633888,-500.0,0.00013698,2]
[356632419,1742862633898,-500.0,0.00013698,2]
[356632420,1742862633908,-500.0,0.00013698,2]
[356632421,1742862633918,-500.0,0.00013698,2]
[356632422,1742862633927,-250.17925599,0.00013698,2]
[356632423,1742862633937,-500.0,0.00013698,2]
[356632424,1742862633946,-500.0,0.00013698,2]
[356632425,1742862633956,-500.0,0.00013698,2]
[356632426,1742862633965,-500.0,0.00013698,2]
[356632427,1742862633976,-500.0,0.00013698,2]
[356632428,1742862633986,-500.0,0.00013698,2]
[356632429,1742862633995,-500.0,0.00013698,2]
[356632430,1742862634005,-500.0,0.00013698,2]
[356632431,1742862634015,-500.0,0.00013698,2]
[356632432,1742862634029,-500.0,0.00013698,2]
[356632433,1742862634038,-500.0,0.00013698,2]
[356632434,1742862634048,-203.23363331,0.00013698,2]
[356632435,1742862634058,-500.0,0.00013698,2]
[356632436,1742862634067,-500.0,0.00013698,2]
[356632437,1742862634076,-500.0,0.00013698,2]
[356632438,1742862634086,-500.0,0.00013698,2]
[356632439,1742862634095,-500.0,0.00013698,2]
[356632440,1742862634105,-568.72,0.00013698,2]
[356632441,1742862634114,-500.0,0.00013698,2]
[356632442,1742862634124,-500.0,0.00013698,2]
[356632443,1742862634135,-712.51,0.00013698,2]
[356632444,1742862634145,-500.0,0.00013698,2]
[356632445,1742862634155,-845.04,0.00013698,2]
[356632446,1742862634165,-500.0,0.00013698,2]
[356632447,1742862634175,-500.0,0.00013698,2]
[356632448,1742862634184,-500.0,0.00013698,2]
[356632449,1742862634194,-500.0,0.00013698,2]
[356632450,1742862634206,-853.61,0.00013698,2]
[356632451,1742862634216,-500.0,0.00013698,2]
[356632452,1742862634226,-500.0,0.00013698,2]
[356632453,1742862634236,-500.0,0.00013698,2]
[356632454,1742862634247,-500.0,0.00013698,2]
[356632455,1742862634257,-506.39596057,0.00013698,2]
[356632456,1742862634267,-569.62,0.00013698,2]
[356632457,1742862634277,-3098.94,0.00013698,2]
[356632458,1742862634289,-572.34,0.00013698,2]
[356632459,1742862634298,-500.0,0.00013698,2]
[356632460,1742862634308,-500.0,0.00013698,2]
[356632461,1742862634318,-976.52,0.00013698,2]
[356632462,1742862634328,-630.81,0.00013698,2]
[356632463,1742862634337,-500.0,0.00013698,2]
[356632464,1742862634347,-646.44,0.00013698,2]
[356632465,1742862634357,-549.66,0.00013698,2]
[356632466,1742862634367,-4152.51,0.00013698,2]
[356632467,1742862634377,-1372.39,0.00013698,2]
[356632468,1742862634387,-500.0,0.00013698,2]
[356632469,1742862634397,-1441.2,0.00013698,2]
[356632470,1742862634407,-151.0,0.00013698,2]
[356632471,1742862634417,-151.0,0.00013698,2]
[356632472,1742862634427,-151.0,0.00013698,2]
[356632473,1742862634436,-2257.02,0.00013698,2]
[356632474,1742862634446,-151.0,0.00013698,2]
[356632475,1742862634455,-500.0,0.00013698,2]
[356632476,1742862634464,-151.0,0.00013698,2]
[356632477,1742862634474,-151.0,0.00013698,2]
[356632478,1742862634484,-151.0,0.00013698,2]
[356632479,1742862634494,-151.0,0.00013698,2]
[356632480,1742862634503,-151.0,0.00013698,2]
[356632481,1742862634512,-151.0,0.00013698,2]
[356632482,1742862634522,-151.0,0.00013698,2]
[356632483,1742862634531,-151.0,0.00013698,2]
[356632484,1742862634540,-500.0,0.00013698,2]
[356632485,1742862634550,-151.0,0.00013698,2]
[356632486,1742862634559,-500.0,0.00013698,2]
[356632487,1742862634569,-151.0,0.00013698,2]
[356632488,1742862634578,-151.0,0.00013698,2]
[356632489,1742862634587,-500.0,0.00013698,2]
[356632490,1742862634702,-151.0,0.00013698,2]
[356632491,1742862634713,-151.0,0.00013698,2]
[356632492,1742862634723,-197.380604,0.00013698,2]
[356632493,1742862634732,-500.0,0.00013698,2]
[356632494,1742862634742,-1616.84,0.00013698,2]
[356632495,1742862634751,-500.0,0.00013698,2]
[356632496,1742862634761,-500.0,0.00013698,2]
[356632497,1742862634770,-506.81033608,0.00013698,2]
[356632498,1742862634780,-507.05288062,0.00013698,2]
[356632499,1742862634790,-500.0,0.00013698,2]
[356632500,1742862634799,-1070.47,0.00013698,2]
[356632501,1742862634809,-500.0,0.00013698,2]
[356632502,1742862634819,-500.0,0.00013698,2]
[356632503,1742862634828,-500.0,0.00013698,2]
[356632504,1742862634838,-2247.36,0.00013698,2]
[356632505,1742862634847,-500.0,0.00013698,2]
[356632506,1742862634857,-500.0,0.00013698,2]
[356632507,1742862634867,-302.20220316,0.00013698,2]
[356632508,1742862634876,-2719.73,0.00013698,2]
[356632509,1742862634886,-835.48,0.00013698,2]
[356632510,1742862634896,-500.0,0.00013698,2]
[356632511,1742862634905,-500.0,0.00013698,2]
[356632512,1742862634914,-594.73,0.00013698,2]
[356632513,1742862634923,-610.76,0.00013698,2]
[356632514,1742862634933,-517.88377614,0.00013698,2]
[356632515,1742862634942,-1065.21,0.00013698,2]
[356632516,1742862634952,-500.0,0.00013698,2]
[356632517,1742862634962,-500.0,0.00013698,2]
[356632518,1742862634971,-515.27415091,0.00013698,2]
[356632519,1742862634981,-5073.09,0.00013698,2]
[356632520,1742862634990,-500.0,0.00013698,2]
[356632521,1742862635000,-500.0,0.00013698,2]
[356632522,1742862635009,-500.0,0.00013698,2]
[356632523,1742862635019,-500.0,0.00013698,2]
[356632524,1742862635030,-500.0,0.00013698,2]
[356632525,1742862635039,-500.0,0.00013698,2]
[356632526,1742862635049,-512.16795156,0.00013698,2]
[356632527,1742862635058,-500.0,0.00013698,2]
[356632528,1742862635067,-500.0,0.00013698,2]
[356632529,1742862635077,-500.0,0.00013698,2]
[356632530,1742862635086,-500.0,0.00013698,2]
[356632531,1742862635095,-1027.97,0.00013698,2]
[356632532,1742862635105,-500.0,0.00013698,2]
[356632533,1742862635114,-500.0,0.00013698,2]
[356632534,1742862635124,-500.0,0.00013698,2]
[356632535,1742862635135,-500.0,0.00013698,2]
[356632536,1742862635144,-500.0,0.00013698,2]
[356632537,1742862635154,-500.0,0.00013698,2]
[356632538,1742862635164,-500.0,0.00013698,2]
[356632539,1742862635173,-508.78663087,0.00013698,2]
[356632540,1742862635183,-500.0,0.00013698,2]
[356632541,1742862635193,-500.0,0.00013698,2]
[356632542,1742862635203,-500.0,0.00013698,2]
[356632543,1742862635218,-500.0,0.00013698,2]
[356632544,1742862635227,-113482.99,0.00013698,2]
[356632545,1742862635237,-641.86,0.00013698,2]
[356632546,1742862635246,-500.0,0.00013698,2]
[356632547,1742862635256,-500.0,0.00013698,2]
[356632548,1742862635265,-500.0,0.00013698,2]
[356632549,1742862635275,-2565.71,0.00013698,2]
[356632550,1742862635284,-713.46,0.00013698,2]
[356632551,1742862635294,-268.75801882,0.00013698,2]
[356632552,1742862635304,-500.0,0.00013698,2]
[356632553,1742862635314,-951.35,0.00013698,2]
[356632554,1742862635323,-2985.6,0.00013698,2]
[356632555,1742862635332,-391.4536085,0.00013698,2]
[356632556,1742862635341,-6005.31,0.00013698,2]
[356632557,1742862635351,-2703.73,0.00013698,2]
[356632558,1742862635360,-500.0,0.00013698,2]
[356632559,1742862635369,-1461.12,0.00013698,2]
[356632560,1742862635379,-500.0,0.00013698,2]
[356632561,1742862635389,-500.0,0.00013698,2]
[356632562,1742862635399,-476.23111316,0.00013698,2]
[356632563,1742862635408,-500.0,0.00013698,2]
[356632564,1742862635417,-500.0,0.00013698,2]
[356632565,1742862635426,-2856.76,0.00013698,2]
[356632566,1742862635435,-5852.47,0.00013698,2]
[356632567,1742862635444,-500.0,0.00013698,2]
[356632568,1742862635453,-1261.8,0.00013698,2]
[356632569,1742862635463,-1053.9,0.00013698,2]